fUSD/lending_fUSD_20241222
["ID","MTS","AMOUNT","RATE_DAILY","PERIOD"]
[346354179,1734906642013,-1500.0,0.00019773,2]
[346354180,1734906642023,-150.0,0.00019774,2]
[346354181,1734906642032,-150.0,0.00019774,2]
[346354186,1734906642094,-150.0,0.00019777,2]
[346354188,1734906642103,-150.0,0.00019777,2]
[346354189,1734906642112,-150.0,0.00019777,2]
[346354191,1734906642121,-150.0,0.0001978,2]
[346354193,1734906642129,-150.0,0.0001978,2]
[346354195,1734906642139,-150.0,0.00019781,2]
[346354197,1734906642148,-150.0,0.00019787,2]
[346354199,1734906642157,-150.0,0.00019789,2]
[346354201,1734906642165,-150.0,0.00019789,2]
[346354203,1734906642174,-150.0,0.00019789,2]
[346354205,1734906642184,-150.0,0.00019797,2]
[346354207,1734906642195,-150.0,0.00019799,2]
[346354209,1734906642204,-775562.86641072,0.000198,3]
[346354237,1734906642450,-550.62852736,0.000198,3]
[346354239,1734906642461,-2286.07909647,0.000198,3]
[346354278,1734906643161,-1408.73520726,0.00016073,2]
[346354279,1734906643172,-329.46124971,0.00019178,2]
[346354280,1734906643183,-170.53875029,0.00019178,2]
[346354281,1734906643195,-535.15,0.00019178,2]
[346354282,1734906643204,-598.65,0.00019452,2]
[346354283,1734906643213,-500.0,0.00019726,2]
[346354284,1734906643222,-4355.13498022,0.000198,3]
[346354285,1734906643246,-2865108.5652101,0.000198,3]
[346354286,1734906643255,-20481.56891247,0.000198,3]
[346354287,1734906643265,-500000.0,0.000198,2]
[346354288,1734906643276,-500000.0,0.000198,2]
[346354289,1734906643285,-500000.0,0.000198,2]
[346354290,1734906643295,-500000.0,0.000198,2]
[346354291,1734906643304,-500000.0,0.000198,2]
[346354292,1734906643314,-500000.0,0.000198,2]
[346354293,1734906643323,-500000.0,0.000198,2]
[346354294,1734906643333,-500000.0,0.000198,2]
[346354295,1734906643343,-729829.47032982,0.000198,2]
[346354296,1734906643353,-18780.06345664,0.000198,2]
[346354297,1734906643362,-150.0,0.00019801,2]
[346354298,1734906643371,-150.0,0.00019807,2]
[346354299,1734906643381,-150.0,0.0001981,2]
[346354300,1734906643390,-150.0,0.00019812,2]
[346354301,1734906643399,-150.0,0.00019817,2]
[346354302,1734906643409,-1898.0,0.00019818,2]
[346354303,1734906643418,-925.0,0.00019818,2]
[346354304,1734906643427,-1256.0,0.00019818,2]
[346354305,1734906643437,-3770.0,0.00019818,2]
[346354306,1734906643447,-818.0,0.00019818,2]
[346354307,1734906643456,-536.0,0.00019818,2]
[346354308,1734906643465,-3682.0,0.00019818,2]
[346354309,1734906643475,-1101.0,0.00019818,2]
[346354310,1734906643484,-241.374,0.00019818,2]
[346354311,1734906643495,-1265.0,0.00019818,2]
[346354312,1734906643504,-2010.0,0.00019818,2]
[346354313,1734906643514,-733.828,0.00019818,2]
[346354314,1734906643524,-3886.0,0.00019818,2]
[346354315,1734906643534,-150.0,0.00019819,2]
[346354316,1734906643543,-150.0,0.00019821,2]
[346354317,1734906643552,-1500.0,0.00019827,2]
[346354318,1734906643563,-150.0,0.00019827,2]
[346354319,1734906643572,-150.0,0.00019829,2]
[346354320,1734906643582,-150.0,0.00019829,2]
[346354321,1734906643591,-150.0,0.00019834,2]
[346354322,1734906643601,-150.0,0.00019836,2]
[346354323,1734906643611,-150.0,0.00019838,2]
[346354324,1734906643621,-150.0,0.00019838,2]
[346354325,1734906643630,-500.0,0.0001984,2]
[346354326,1734906643639,-200.0,0.0001984,2]
[346354327,1734906643649,-1500.0,0.0001984,2]
[346354328,1734906643660,-150.0,0.00019849,2]
[346354329,1734906643669,-150.0,0.00019849,2]
[346354330,1734906643679,-150.0,0.00019856,2]
[346354331,1734906643689,-150.0,0.00019857,2]
[346354332,1734906643699,-150.0,0.00019864,2]
[346354333,1734906643708,-171.97,0.00019865,2]
[346354334,1734906643718,-2650.143,0.00019865,2]
[346354335,1734906643727,-150.0,0.00019874,2]
[346354336,1734906643742,-1500.0,0.00019877,2]
[346354337,1734906643753,-150.0,0.00019878,2]
[346354338,1734906643763,-150.0,0.0001988,2]
[346354339,1734906643774,-150.0,0.00019887,2]
[346354340,1734906643783,-150.0,0.0001989,2]
[346354341,1734906643792,-1649.44,0.0001989,2]
[346354342,1734906643802,-150.0,0.0001989,2]
[346354343,1734906643811,-435.85,0.0001989,2]
[346354344,1734906643823,-150.0,0.00019891,2]
[346354345,1734906643834,-150.0,0.00019896,2]
[346354346,1734906643844,-150.0,0.00019896,2]
[346354347,1734906643854,-150.0,0.00019896,2]
[346354348,1734906643863,-22291.9010912,0.000199,2]
[346354349,1734906643873,-150.0,0.000199,2]
[346354350,1734906643883,-18780.06345664,0.000199,2]
[346354351,1734906643893,-365.0,0.000199,2]
[346354352,1734906643902,-1500.0,0.00019904,2]
[346354353,1734906643912,-150.0,0.00019909,2]
[346354354,1734906643922,-150.0,0.0001991,2]
[346354355,1734906643931,-150.0,0.00019913,2]
[346354356,1734906643941,-150.0,0.00019915,2]
[346354357,1734906643951,-150.0,0.00019915,2]
[346354358,1734906643960,-150.0,0.0001992,2]
[346354359,1734906643970,-1500.0,0.00019921,2]
[346354360,1734906643980,-1500.0,0.00019926,2]
[346354361,1734906643989,-150.0,0.00019928,2]
[346354362,1734906643998,-150.0,0.0001993,2]
[346354363,1734906644008,-150.0,0.00019932,2]
[346354364,1734906644017,-1500.0,0.00019938,2]
[346354365,1734906644027,-150.0,0.00019939,2]
[346354366,1734906644036,-150.0,0.00019939,2]
[346354367,1734906644045,-150.0,0.00019941,2]
[346354368,1734906644055,-150.0,0.00019942,2]
[346354369,1734906644064,-500.0,0.00019947,2]
[346354370,1734906644073,-500.0,0.00019947,2]
[346354371,1734906644083,-500.0,0.00019947,2]
[346354372,1734906644092,-500.0,0.00019947,2]
[346354373,1734906644102,-500.0,0.00019947,2]
[346354374,1734906644111,-500.0,0.00019947,2]
[346354375,1734906644121,-500.0,0.00019947,2]
[346354376,1734906644130,-500.0,0.00019947,2]
[346354377,1734906644139,-500.0,0.00019947,2]
[346354378,1734906644149,-500.0,0.00019947,2]
[346354379,1734906644158,-500.0,0.00019947,2]
[346354380,1734906644167,-531.66208753,0.00019947,2]
[346354381,1734906644176,-173.75811472,0.00019947,2]
[346354382,1734906644186,-500.0,0.00019947,2]
[346354383,1734906644197,-502.52,0.00019947,2]
[346354384,1734906644207,-2345.15,0.00019947,2]
[346354385,1734906644216,-500.0,0.00019947,2]
[346354387,1734906644225,-500.0,0.00019947,2]
[346354389,1734906644235,-500.0,0.00019947,2]
[346354391,1734906644244,-500.0,0.00019947,2]
[346354393,1734906644254,-500.0,0.00019947,2]
[346354395,1734906644263,-684.39,0.00019947,2]
[346354398,1734906644276,-833.3,0.00019947,2]
[346354400,1734906644286,-1854.09,0.00019947,2]
[346354402,1734906644295,-500.0,0.00019947,2]
[346354404,1734906644305,-500.0,0.00019947,2]
[346354406,1734906644315,-3079.28,0.00019947,2]
[346354408,1734906644324,-22969.54,0.00019947,2]
[346354409,1734906644334,-1733.55,0.00019947,2]
[346354410,1734906644343,-937.43,0.00019947,2]
[346354411,1734906644352,-649.31,0.00019947,2]
[346354412,1734906644362,-1783.03,0.00019947,2]
[346354413,1734906644371,-11675.32,0.00019947,2]
[346354414,1734906644380,-500.0,0.00019947,2]
[346354415,1734906644389,-500.0,0.00019947,2]
[346354416,1734906644398,-934.71,0.00019947,2]
[346354417,1734906644407,-151.4503723,0.00019947,2]
[346354418,1734906644417,-762.02,0.00019947,2]
[346354419,1734906644427,-500.0,0.00019947,2]
[346354420,1734906644436,-667.56,0.00019947,2]
[346354421,1734906644448,-3576.13,0.00019947,2]
[346354422,1734906644458,-500.0,0.00019947,2]
[346354423,1734906644467,-500.0,0.00019947,2]
[346354424,1734906644477,-677.03,0.00019947,2]
[346354425,1734906644487,-500.0,0.00019947,2]
[346354426,1734906644497,-150.0,0.00019949,2]
[346354427,1734906644507,-2236.37670249,0.0001995,30]
[346354428,1734906644517,-150.0,0.00019953,2]
[346354429,1734906644527,-150.0,0.00019956,2]
[346354430,1734906644536,-1500.0,0.00019957,2]
[346354431,1734906644546,-150.0,0.00019957,2]
[346354432,1734906644556,-1500.0,0.00019961,2]
[346354433,1734906644565,-150.0,0.00019962,2]
[346354434,1734906644575,-150.0,0.00019964,2]
[346354435,1734906644584,-500.0,0.00019973,2]
[346354436,1734906644593,-500.89787548,0.00019973,2]
[346354437,1734906644605,-159.71631024,0.00019973,2]
[346354438,1734906644615,-500.78619416,0.00019973,2]
[346354439,1734906644624,-500.0,0.00019973,2]
[346354440,1734906644633,-500.0,0.00019973,2]
[346354441,1734906644643,-500.20297702,0.00019973,2]
[346354442,1734906644652,-504.82459546,0.00019973,2]
[346354443,1734906644661,-150.0,0.00019977,2]
[346354444,1734906644670,-1500.0,0.00019978,2]
[346354445,1734906644680,-150.0,0.00019979,2]
[346354446,1734906644689,-7056.60924323,0.0001998,2]
[346354447,1734906644699,-150.0,0.0001998,2]
[346354448,1734906644708,-150.0,0.0001998,2]
[346354449,1734906644718,-150.0,0.00019987,2]
[346354450,1734906644727,-150.0,0.00019989,2]
[346354451,1734906644738,-21311.78300961,0.0001999,2]
[346354452,1734906644749,-15416.27835465,0.0001999,2]
[346354453,1734906644759,-150.0,0.00019991,2]
[346354454,1734906644770,-1500.0,0.00019994,2]
[346354455,1734906644780,-847.9842588,0.00019996,2]
[346354456,1734906644791,-168.5331922,0.00019996,2]
[346354457,1734906644801,-185.8864389,0.00019996,2]
[346354458,1734906644810,-483.7714676,0.00019996,2]
[346354459,1734906644821,-1406.2944479,0.00019996,2]
[346354460,1734906644831,-566.1470966,0.00019996,2]
[346354461,1734906644841,-150.0,0.00019996,2]
[346354462,1734906644851,-513026.20560078,0.00019997,2]
[346354463,1734906644860,-153.0,0.00019999,2]
[346354464,1734906644869,-153.0,0.00019999,2]
[346354465,1734906644878,-153.0,0.00019999,2]
[346354466,1734906644887,-153.0,0.00019999,2]
[346354467,1734906644897,-153.0,0.00019999,2]
[346354468,1734906644907,-153.0,0.00019999,2]
[346354469,1734906644917,-153.0,0.00019999,2]
[346354470,1734906644926,-153.0,0.00019999,2]
[346354471,1734906644935,-153.0,0.00019999,2]
[346354472,1734906644946,-153.0,0.00019999,2]
[346354473,1734906644956,-153.0,0.00019999,2]
[346354474,1734906644965,-153.0,0.00019999,2]
[346354475,1734906644976,-153.0,0.00019999,2]
[346354476,1734906644986,-153.0,0.00019999,2]
[346354477,1734906644996,-153.0,0.00019999,2]
[346354478,1734906645005,-153.0,0.00019999,2]
[346354479,1734906645014,-153.0,0.00019999,2]
[346354480,1734906645024,-153.0,0.00019999,2]
[346354481,1734906645033,-153.0,0.00019999,2]
[346354482,1734906645043,-153.0,0.00019999,2]
[346354483,1734906645052,-153.0,0.00019999,2]
[346354484,1734906645062,-153.0,0.00019999,2]
[346354485,1734906645072,-153.0,0.00019999,2]
[346354486,1734906645082,-153.0,0.00019999,2]
[346354487,1734906645092,-153.0,0.00019999,2]
[346354488,1734906645102,-153.0,0.00019999,2]
[346354489,1734906645112,-153.0,0.00019999,2]
[346354490,1734906645121,-153.0,0.00019999,2]
[346354491,1734906645131,-153.0,0.00019999,2]
[346354492,1734906645141,-153.0,0.00019999,2]
[346354493,1734906645150,-153.0,0.00019999,2]
[346354494,1734906645160,-153.0,0.00019999,2]
[346354495,1734906645169,-153.0,0.00019999,2]
[346354496,1734906645179,-153.0,0.00019999,2]
[346354497,1734906645189,-153.0,0.00019999,2]
[346354498,1734906645199,-153.0,0.00019999,2]
[346354499,1734906645210,-153.0,0.00019999,2]
[346354500,1734906645219,-153.0,0.00019999,2]
[346354501,1734906645229,-153.0,0.00019999,2]
[346354502,1734906645238,-153.0,0.00019999,2]
[346354503,1734906645248,-153.0,0.00019999,2]
[346354504,1734906645421,-153.0,0.00019999,2]
[346354505,1734906645430,-153.0,0.00019999,2]
[346354506,1734906645439,-153.0,0.00019999,2]
[346354507,1734906645448,-153.0,0.00019999,2]
[346354508,1734906645457,-153.0,0.00019999,2]
[346354509,1734906645467,-153.0,0.00019999,2]
[346354510,1734906645476,-153.0,0.00019999,2]
[346354511,1734906645485,-153.0,0.00019999,2]
[346354512,1734906645494,-153.0,0.00019999,2]
[346354513,1734906645504,-153.0,0.00019999,2]
[346354514,1734906645513,-153.0,0.00019999,2]
[346354515,1734906645522,-153.0,0.00019999,2]
[346354516,1734906645531,-153.0,0.00019999,2]
[346354517,1734906645540,-153.0,0.00019999,2]
[346354518,1734906645550,-153.0,0.00019999,2]
[346354519,1734906645559,-153.0,0.00019999,2]
[346354520,1734906645569,-153.0,0.00019999,2]
[346354521,1734906645578,-153.0,0.00019999,2]
[346354522,1734906645587,-153.0,0.00019999,2]
[346354523,1734906645597,-300.0,0.00019999,2]
[346354524,1734906645606,-666.0,0.00019999,2]
[346354525,1734906645615,-1000.0,0.00019999,2]
[346354526,1734906645624,-590.78,0.00019999,2]
[346354527,1734906645634,-94880.87474971,0.00019999,2]
[346354528,1734906645643,-150.0,0.00019999,2]
[346354529,1734906645652,-153.0,0.00019999,2]
[346354530,1734906645662,-153.0,0.00019999,2]
[346354531,1734906645672,-11891.09685855,0.0002,2]
[346354532,1734906645681,-3896064.70681598,0.0002,2]
[346354533,1734906645692,-479137.04860594,0.0002,2]
[346354534,1734906645702,-11698.9608648,0.0002,2]
[346354535,1734906645713,-8026.13592569,0.0002,2]
[346354536,1734906645723,-2052.05070564,0.0002,2]
[346354537,1734906645732,-811.98693779,0.0002,2]
[346354538,1734906645743,-1000.0,0.0002,2]
[346354539,1734906645756,-1000.0,0.0002,2]
[346354540,1734906645767,-1000.0,0.0002,2]
[346354541,1734906645776,-1000.0,0.0002,2]
[346354542,1734906645787,-1000.0,0.0002,2]
[346354543,1734906645796,-1000.0,0.0002,2]
[346354545,1734906645805,-1000.0,0.0002,2]
[346354546,1734906645815,-1000.0,0.0002,2]
[346354548,1734906645825,-1000.0,0.0002,2]
[346354549,1734906645834,-1000.0,0.0002,2]
[346354550,1734906645845,-1000.0,0.0002,2]
[346354551,1734906645854,-1000.0,0.0002,2]
[346354552,1734906645863,-217.14106938,0.0002,2]
[346354553,1734906645873,-3495.6389295,0.0002,2]
[346354554,1734906645883,-202.6,0.0002,2]
[346354555,1734906645892,-202.6,0.0002,2]
[346354556,1734906645901,-202.6,0.0002,2]
[346354557,1734906645911,-3115.51,0.0002,2]
[346354559,1734906645920,-1000.0,0.0002,2]
[346354560,1734906645929,-1000.0,0.0002,2]
[346354562,1734906645939,-1000.0,0.0002,2]
[346354563,1734906645948,-1000.0,0.0002,2]
[346354564,1734906645957,-1000.0,0.0002,2]
[346354565,1734906645966,-1000.0,0.0002,2]
[346354566,1734906645976,-1000.0,0.0002,2]
[346354567,1734906645985,-1000.0,0.0002,2]
[346354568,1734906645994,-1000.0,0.0002,2]
[346354569,1734906646004,-1000.0,0.0002,2]
[346354570,1734906646013,-1000.0,0.0002,2]
[346354571,1734906646022,-1000.0,0.0002,2]
[346354572,1734906646032,-1000.0,0.0002,2]
[346354573,1734906646041,-1000.0,0.0002,2]
[346354574,1734906646051,-1000.0,0.0002,2]
[346354575,1734906646060,-1000.0,0.0002,2]
[346354576,1734906646073,-1000.0,0.0002,2]
[346354577,1734906646083,-1000.0,0.0002,2]
[346354578,1734906646093,-1000.0,0.0002,2]
[346354579,1734906646102,-1000.0,0.0002,2]
[346354580,1734906646112,-1000.0,0.0002,2]
[346354581,1734906646122,-856.16529775,0.0002,15]
[346354582,1734906646132,-436.798897,0.0002,2]
[346354583,1734906646142,-49300.72684461,0.0002,16]
[346354584,1734906646151,-2110.0,0.0002,2]
[346354585,1734906646161,-629.0,0.0002,2]
[346354586,1734906646170,-2000.0,0.0002,2]
[346354587,1734906646181,-224.79,0.0002,14]
[346354588,1734906646191,-4509.07097946,0.0002,2]
[346354589,1734906646201,-1257.0,0.0002,7]
[346354590,1734906646211,-12000.0,0.0002,2]
[346354591,1734906646220,-2000.0,0.0002,2]
[346354592,1734906646230,-500.0,0.0002,2]
[346354593,1734906646240,-500.0,0.0002,2]
[346354594,1734906646250,-200.0,0.0002,2]
[346354595,1734906646259,-500.0,0.0002,2]
[346354596,1734906646269,-500.0,0.0002,2]
[346354597,1734906646279,-500.0,0.0002,2]
[346354598,1734906646289,-500.0,0.0002,2]
[346354599,1734906646299,-500.0,0.0002,2]
[346354600,1734906646308,-500.0,0.0002,2]
[346354601,1734906646317,-500.0,0.0002,2]
[346354602,1734906646327,-3000.0,0.0002,2]
[346354603,1734906646336,-500.0,0.0002,2]
[346354604,1734906646346,-500.0,0.0002,2]
[346354605,1734906646355,-500.0,0.0002,2]
[346354606,1734906646364,-500.0,0.0002,2]
[346354607,1734906646373,-500.0,0.0002,2]
[346354608,1734906646382,-500.0,0.0002,2]
[346354609,1734906646392,-500.0,0.0002,2]
[346354610,1734906646401,-500.0,0.0002,2]
[346354611,1734906646410,-500.0,0.0002,2]
[346354612,1734906646419,-500.0,0.0002,2]
[346354613,1734906646428,-500.0,0.0002,2]
[346354614,1734906646438,-500.0,0.0002,2]
[346354615,1734906646447,-500.0,0.0002,2]
[346354616,1734906646457,-500.0,0.0002,2]
[346354617,1734906646466,-500.0,0.0002,2]
[346354618,1734906646476,-500.0,0.0002,2]
[346354619,1734906646486,-500.0,0.0002,2]
[346354620,1734906646496,-500.0,0.0002,2]
[346354621,1734906646506,-500.0,0.0002,2]
[346354622,1734906646517,-500.0,0.0002,2]
[346354623,1734906646527,-500.0,0.0002,2]
[346354625,1734906646536,-500.0,0.0002,2]
[346354627,1734906646545,-500.0,0.0002,2]
[346354629,1734906646555,-500.0,0.0002,2]
[346354631,1734906646564,-281.30245446,0.0002,2]
[346354632,1734906646574,-500.0,0.0002,2]
[346354633,1734906646583,-500.0,0.0002,2]
[346354634,1734906646593,-500.0,0.0002,2]
[346354635,1734906646603,-500.0,0.0002,2]
[346354636,1734906646613,-500.0,0.0002,2]
[346354637,1734906646622,-500.0,0.0002,2]
[346354638,1734906646632,-500.0,0.0002,2]
[346354639,1734906646641,-500.0,0.0002,2]
[346354640,1734906646651,-500.0,0.0002,2]
[346354641,1734906646660,-500.0,0.0002,2]
[346354642,1734906646669,-553.03,0.0002,2]
[346354643,1734906646678,-500.0,0.0002,2]
[346354644,1734906646688,-500.0,0.0002,2]
[346354645,1734906646697,-1128.7,0.0002,2]
[346354646,1734906646706,-500.0,0.0002,2]
[346354647,1734906646716,-500.0,0.0002,2]
[346354648,1734906646726,-500.0,0.0002,2]
[346354649,1734906646738,-500.0,0.0002,2]
[346354650,1734906646747,-500.0,0.0002,2]
[346354651,1734906646757,-500.0,0.0002,2]
[346354652,1734906646766,-500.0,0.0002,2]
[346354653,1734906646776,-500.0,0.0002,2]
[346354654,1734906646786,-500.0,0.0002,2]
[346354655,1734906646796,-569.64,0.0002,2]
[346354656,1734906646805,-500.0,0.0002,2]
[346354657,1734906646816,-533.1,0.0002,2]
[346354658,1734906646825,-500.0,0.0002,2]
[346354659,1734906646834,-500.0,0.0002,2]
[346354660,1734906646844,-600.23,0.0002,2]
[346354661,1734906646853,-500.0,0.0002,2]
[346354662,1734906646862,-500.0,0.0002,2]
[346354663,1734906646872,-585.25,0.0002,2]
[346354664,1734906646881,-970.75,0.0002,2]
[346354665,1734906646890,-500.0,0.0002,2]
[346354666,1734906646900,-636.61,0.0002,2]
[346354667,1734906646909,-500.0,0.0002,2]
[346354668,1734906646918,-500.0,0.0002,2]
[346354669,1734906646927,-156.21,0.0002,2]
[346354670,1734906646936,-500.0,0.0002,2]
[346354671,1734906646946,-200.00341483,0.0002,2]
[346354672,1734906646955,-276.68,0.0002,2]
[346354673,1734906646964,-500.0,0.0002,2]
[346354674,1734906646974,-406.81,0.0002,2]
[346354675,1734906646983,-500.0,0.0002,2]
[346354676,1734906646992,-500.0,0.0002,2]
[346354677,1734906647002,-551.98,0.0002,2]
[346354678,1734906647011,-500.0,0.0002,2]
[346354679,1734906647020,-500.0,0.0002,2]
[346354680,1734906647029,-710.46,0.0002,2]
[346354681,1734906647038,-500.0,0.0002,2]
[346354682,1734906647048,-500.0,0.0002,2]
[346354683,1734906647057,-500.0,0.0002,2]
[346354684,1734906647067,-500.0,0.0002,2]
[346354685,1734906647076,-500.0,0.0002,2]
[346354686,1734906647086,-500.0,0.0002,2]
[346354687,1734906647095,-500.0,0.0002,2]
[346354688,1734906647105,-500.0,0.0002,2]
[346354689,1734906647114,-500.0,0.0002,2]
[346354690,1734906647124,-500.0,0.0002,2]
[346354691,1734906647133,-500.0,0.0002,2]
[346354692,1734906647142,-500.0,0.0002,2]
[346354693,1734906647151,-500.0,0.0002,2]
[346354694,1734906647161,-10021.03330535,0.0002,7]
[346354695,1734906647170,-500.0,0.0002,2]
[346354696,1734906647179,-500.0,0.0002,2]
[346354697,1734906647190,-150.0,0.0002,2]
[346354698,1734906647200,-266.3357231,0.0002,2]
[346354699,1734906647209,-1401.8,0.0002,2]
[346354700,1734906647219,-6500.0,0.0002,2]
[346354701,1734906647229,-500.0,0.0002,2]
[346354702,1734906647239,-500.0,0.0002,2]
[346354703,1734906647249,-1000.0,0.0002,2]
[346354704,1734906647258,-5204.6783,0.0002,2]
[346354705,1734906647268,-5204.6783,0.0002,2]
[346354706,1734906647277,-500.0,0.0002,2]
[346354707,1734906647287,-509.76,0.0002,2]
[346354708,1734906647296,-500.0,0.0002,2]
[346354709,1734906647306,-297.45562122,0.0002,2]
[346354710,1734906647315,-500.0,0.0002,2]
[346354711,1734906647324,-27180.1709375,0.0002,60]
[346354712,1734906647334,-500.0,0.0002,2]
[346354713,1734906647343,-500.0,0.0002,2]
[346354714,1734906647353,-1004.32,0.0002,2]
[346354715,1734906647363,-500.0,0.0002,2]
[346354716,1734906647372,-404.91461292,0.0002,2]
[346354717,1734906647382,-500.0,0.0002,2]
[346354718,1734906647391,-500.0,0.0002,2]
[346354719,1734906647401,-500.0,0.0002,2]
[346354720,1734906647410,-500.0,0.0002,2]
[346354721,1734906647419,-812.0,0.0002,2]
[346354722,1734906647428,-1256.83,0.0002,2]
[346354723,1734906647438,-690.28,0.0002,2]
[346354724,1734906647448,-3000.0,0.0002,2]
[346354725,1734906647457,-500.0,0.0002,2]
[346354726,1734906647466,-624.23,0.0002,2]
[346354727,1734906647475,-513.75,0.0002,2]
[346354728,1734906647484,-989.87,0.0002,2]
[346354729,1734906647494,-569.35,0.0002,2]
[346354730,1734906647503,-1612.81,0.0002,2]
[346354731,1734906647513,-500.0,0.0002,2]
[346354732,1734906647523,-500.0,0.0002,2]
[346354733,1734906647533,-1700.19,0.0002,2]
[346354734,1734906647542,-7354.58,0.0002,2]
[346354735,1734906647552,-65344.39489571,0.0002,2]
[346354736,1734906647562,-500.0,0.0002,2]
[346354737,1734906647571,-1821.31,0.0002,2]
[346354738,1734906647581,-500.0,0.0002,2]
[346354739,1734906647590,-1927.56,0.0002,2]
[346354740,1734906647600,-685.74,0.0002,2]
[346354741,1734906647609,-595.59,0.0002,2]
[346354742,1734906647618,-2579.354495,0.0002,2]
[346354743,1734906647628,-2369.25,0.0002,2]
[346354744,1734906647637,-4110.701034,0.0002,2]
[346354745,1734906647647,-1389.03899863,0.0002,5]
[346354746,1734906647656,-1190.4,0.0002,2]
[346354747,1734906647665,-158.0,0.0002,2]
[346354748,1734906647674,-8695.59,0.0002,2]
[346354749,1734906647684,-500.0,0.0002,2]
[346354750,1734906647694,-500.0,0.0002,2]
[346354751,1734906647703,-515.32,0.0002,2]
[346354752,1734906647713,-2812.36,0.0002,2]
[346354753,1734906647722,-1128.54,0.0002,2]
[346354754,1734906647732,-31101.9081994,0.0002,2]
[346354755,1734906647741,-500.0,0.0002,2]
[346354756,1734906647753,-11202.38,0.0002,2]
[346354757,1734906647762,-500.0,0.0002,2]
[346354758,1734906647772,-500.0,0.0002,2]
[346354759,1734906647781,-500.0,0.0002,2]
[346354760,1734906647791,-500.0,0.0002,2]
[346354761,1734906647800,-500.0,0.0002,2]
[346354762,1734906647809,-500.0,0.0002,2]
[346354763,1734906647818,-500.0,0.0002,2]
[346354764,1734906647831,-500.0,0.0002,2]
[346354765,1734906647841,-500.0,0.0002,2]
[346354766,1734906647850,-500.0,0.0002,2]
[346354767,1734906647859,-500.0,0.0002,2]
[346354768,1734906647868,-619.75,0.0002,2]
[346354769,1734906647878,-921.56,0.0002,2]
[346354770,1734906647886,-1710.24,0.0002,2]
[346354771,1734906647896,-7500.0,0.0002,2]
[346354772,1734906647905,-3822.01839656,0.0002,2]
[346354773,1734906647915,-102976.38601718,0.0002,2]
[346354774,1734906647924,-500.0,0.0002,2]
[346354775,1734906647934,-1407.73,0.0002,2]
[346354776,1734906647944,-500.0,0.0002,2]
[346354777,1734906647954,-4166.58696057,0.0002,2]
[346354778,1734906647963,-114066.45756775,0.0002,4]
[346354779,1734906647973,-500.0,0.0002,2]